bitfinex/quotes_ETHUSD_20220219
["timestamp","ask_amount","ask_price","bid_price","bid_amount"]
[1645243294667,12.85669436,2807.0,2806.9,11.36271466]
[1645243294870,12.85669436,2807.0,2806.9,11.2765985]
[1645243295068,12.85669436,2807.0,2806.9,10.59096108]
[1645243295868,12.85669436,2807.0,2806.9,10.67707724]
[1645243296068,12.85669436,2807.0,2806.9,10.59096108]
[1645243297269,12.85669436,2807.0,2806.9,10.5933132]
[1645243297571,12.85669436,2807.0,2806.9,10.67942936]
[1645243301221,16.35669436,2807.0,2806.9,12.40494475]
[1645243301424,16.35669436,2807.0,2806.9,3.4963132]
[1645243301668,16.35669436,2807.0,2806.9,1.1949032]
[1645243301876,16.35669436,2807.0,2806.9,0.64504107]
[1645243302468,16.35669436,2807.0,2806.9,1.54990748]
[1645243302665,16.35669436,2807.0,2806.9,1.53912223]
[1645243303268,16.35669436,2807.0,2806.9,1.83912223]
[1645243303465,16.35669436,2807.0,2806.9,0.63425582]
[1645243303765,16.35669436,2807.0,2806.9,1.53911958]
[1645243305266,12.85669436,2807.0,2806.9,1.53911958]
[1645243305524,16.35669436,2807.0,2806.9,1.53911958]
[1645243306123,12.85669436,2807.0,2806.9,1.53911958]
[1645243306520,16.35669436,2807.0,2806.9,1.53911958]
[1645243306722,12.85669436,2807.0,2806.9,1.53911958]
[1645243307524,12.85669436,2807.0,2806.9,1.524962]
[1645243311671,12.85669436,2807.0,2806.9,1.824962]
[1645243314421,12.85669436,2807.0,2806.9,1.524962]
[1645243315421,12.86180523,2807.0,2806.9,1.524962]
[1645243316026,12.86180523,2807.0,2806.9,0.62009824]
[1645243316027,15.57000281,2807.0,2806.9,0.62009824]
[1645243316225,12.86180523,2807.0,2806.9,0.62009824]
[1645243316423,12.8669161,2807.0,2806.9,0.62009824]
[1645243316865,12.86607293,2807.0,2806.9,0.62009824]
[1645243317468,12.8711838,2807.0,2806.9,0.62009824]
[1645243318470,12.87629467,2807.0,2806.9,0.62009824]
[1645243319471,12.88140554,2807.0,2806.9,0.62009824]
[1645243320521,12.88651641,2807.0,2806.9,0.62009824]
[1645243321523,12.89162728,2807.0,2806.9,0.62009824]
[1645243322123,12.89162728,2807.0,2806.9,0.61648973]
[1645243322722,16.39673815,2807.0,2806.9,0.61648973]
[1645243323821,16.40184902,2807.0,2806.9,0.61648973]
[1645243324668,12.90695989,2807.0,2806.9,0.61648973]
[1645243325069,16.40695989,2807.0,2806.9,0.61648973]
[1645243325668,16.41207076,2807.0,2806.9,0.61648973]
[1645243326070,12.91207076,2807.0,2806.9,0.61648973]
[1645243326469,16.41207076,2807.0,2806.9,0.61648973]
[1645243326671,16.41718163,2807.0,2806.9,0.61648973]
[1645243326873,12.91718163,2807.0,2806.9,0.61648973]
[1645243327473,12.91718163,2807.0,2806.9,0.61327051]
[1645243327673,12.9222925,2807.0,2806.9,0.61327051]
[1645243328731,16.42740337,2807.0,2806.9,0.61327051]
[1645243328930,12.92740337,2807.0,2806.9,0.61327051]
[1645243329927,12.93251424,2807.0,2806.9,0.61327051]
[1645243330127,12.92740337,2807.0,2806.9,0.61327051]
[1645243330326,13.05284558,2807.0,2806.9,0.61327051]
[1645243331329,13.17828779,2807.0,2806.9,0.61327051]
[1645243331971,16.67828779,2807.0,2806.9,0.61327051]
[1645243332170,13.17828779,2807.0,2806.9,0.61327051]
[1645243332572,13.30884087,2807.0,2806.9,0.61327051]
[1645243332770,13.30373,2807.0,2806.9,0.61327051]
[1645243333276,16.80373,2807.0,2806.9,0.61327051]
[1645243333475,13.30373,2807.0,2806.9,0.61327051]
[1645243333671,13.42917221,2807.0,2806.9,0.61327051]
[1645243334672,13.55461442,2807.0,2806.9,0.61327051]
[1645243335073,17.05461442,2807.0,2806.9,0.61327051]
[1645243335722,17.31568643,2807.0,2806.9,0.61327051]
[1645243336120,13.81568643,2807.0,2806.9,0.61327051]
[1645243336620,13.95131623,2807.0,2806.9,0.61327051]
[1645243336821,14.07675844,2807.0,2806.9,0.61327051]
[1645243337225,14.02675844,2807.0,2806.9,0.61327051]
[1645243337421,14.02675844,2807.0,2806.9,0.60467718]
[1645243337821,14.28783045,2807.0,2806.9,0.60467718]
[1645243338720,14.42857112,2807.0,2806.9,0.60467718]
[1645243338920,14.54890246,2807.0,2806.9,0.60467718]
[1645243339773,14.80997447,2807.0,2806.9,0.60467718]
[1645243340775,14.95071514,2807.0,2806.9,0.60467718]
[1645243340974,15.07104648,2807.0,2806.9,0.60467718]
[1645243341782,15.20667628,2807.0,2806.9,0.60467718]
[1645243341983,15.33211849,2807.0,2806.9,0.61641946]
[1645243342784,15.46774829,2807.0,2806.9,0.61641946]
[1645243343026,15.5931905,2807.0,2806.9,0.61641946]
[1645243344018,15.85426251,2807.0,2806.9,0.61641946]
[1645243345026,16.11533452,2807.0,2806.9,0.61641946]
[1645243346022,16.25607519,2807.0,2806.9,0.61641946]
[1645243346420,16.25096432,2807.0,2806.9,0.61641946]
[1645243347069,16.38659412,2807.0,2806.9,0.61641946]
[1645243347374,16.38659412,2807.0,2806.9,0.61130859]
[1645243347971,16.52222392,2807.0,2806.9,0.61130859]
[1645243348970,16.65785372,2807.0,2806.9,0.61130859]
[1645243350074,16.79348352,2807.0,2806.9,0.61130859]
[1645243351532,16.66804131,2807.0,2806.9,0.61130859]
[1645243356976,16.53241151,2807.0,2806.9,0.61130859]
[1645243358552,16.65785372,2807.0,2806.9,0.61130859]
[1645243358751,16.53241151,2807.0,2806.9,0.61130859]
[1645243358955,16.66804131,2807.0,2806.9,0.61130859]
[1645243359153,16.53241151,2807.0,2806.9,0.61130859]
[1645243362975,18.0447223,2807.0,2806.9,0.60971613]
[1645243363476,16.53241151,2807.0,2806.9,0.60971613]
[1645243364781,16.65785372,2807.0,2806.9,0.60971613]
[1645243365077,16.53241151,2807.0,2806.9,0.60971613]
[1645243365923,18.0447177,2807.0,2806.9,0.60971613]
[1645243366125,18.1803475,2807.0,2806.9,0.60971613]
[1645243366323,18.0447177,2807.0,2806.9,0.60971613]
[1645243366926,16.65785372,2807.0,2806.9,0.60971613]
[1645243367326,18.16503458,2807.0,2806.9,0.60971613]
[1645243368326,18.16503458,2807.0,2806.9,0.60460526]
[1645243368726,18.16503458,2807.0,2806.9,0.60104268]
[1645243368928,16.65274285,2807.0,2806.9,0.60104268]
[1645243370170,16.65274285,2807.0,2806.9,0.5974801]
[1645243371170,18.16505055,2807.0,2806.9,0.5974801]
[1645243371570,18.16505055,2807.0,2806.9,0.59391752]
[1645243371770,16.65274285,2807.0,2806.9,0.59391752]
[1645243372371,16.65274285,2807.0,2806.9,0.58765112]
[1645243372372,18.30068162,2807.0,2806.9,0.58765112]
[1645243373027,18.30068162,2807.0,2806.9,0.58408854]
[1645243373429,16.66293044,2807.0,2806.9,0.58408854]
[1645243373823,27.51293044,2807.0,2806.9,0.58408854]
[1645243374028,29.02524702,2807.0,2806.9,0.58408854]
[1645243374428,29.02524702,2807.0,2806.9,0.28530953]
[1645243374830,29.02524702,2807.0,2806.9,0.45508375]
[1645243375034,18.17524702,2807.0,2806.9,0.45508375]
[1645243375227,16.66293044,2807.0,2806.9,0.45508375]
[1645243379293,16.52730064,2807.0,2806.9,0.45508375]
[1645243380296,16.52730064,2807.0,2806.9,0.31945395]
[1645243380532,16.52730064,2807.0,2806.9,0.18544022]
[1645243380734,16.52730064,2807.0,2806.9,0.31945395]
[1645243387795,16.52730064,2807.0,2806.9,0.32572035]
[1645243388434,16.52218977,2807.0,2806.9,0.32572035]
[1645243389427,16.52218977,2807.0,2806.9,0.32060948]
[1645243392374,16.52218977,2807.0,2806.9,0.30378795]
[1645243394382,16.39674756,2807.0,2806.9,0.30378795]
[1645243395425,16.39674756,2807.0,2806.9,0.17834574]
[1645243395826,16.39674756,2807.0,2806.9,0.13401373]
[1645243396029,16.39674756,2807.0,2806.9,0.17834574]
[1645243400279,16.26111776,2807.0,2806.9,0.17834574]
[1645243401381,16.26111776,2807.0,2806.9,0.04271594]
[1645243401581,16.26111776,2807.0,2806.8,0.91081393]
[1645243401782,16.26111776,2807.0,2806.9,0.04271594]
[1645243401981,16.01514989,2807.0,2806.9,0.04271594]
[1645243402181,16.26111776,2807.0,2806.9,0.04271594]
[1645243405532,13.97366945,2807.0,2806.9,0.04271594]
[1645243405736,13.97366945,2807.0,2806.9,0.86271594]
[1645243405737,13.43944241,2807.0,2806.9,0.86271594]
[1645243406038,13.43944241,2807.0,2806.9,4.3258465]
[1645243406039,5.91338583,2807.0,2806.9,4.3258465]
[1645243406334,0.00203285,2807.6,2806.9,5.3258465]
[1645243406531,0.00203285,2807.6,2807.5,0.89845031]
[1645243406779,0.00203285,2807.6,2807.5,1.41845031]
[1645243406980,0.00203285,2807.6,2807.5,5.51845031]
[1645243407180,0.00203285,2807.6,2807.5,6.46705045]
[1645243407377,1.51189869,2808.2,2807.5,6.46705045]
[1645243407581,0.00203295,2807.7,2807.5,6.46705045]
[1645243407781,0.00203295,2807.7,2807.5,5.56116625]
[1645243408280,0.00203295,2807.7,2807.6,5.58101]
[1645243408480,1.51189869,2808.1,2807.6,6.40101]
[1645243408684,0.00203292,2807.7,2807.6,6.40101]
[1645243409681,1.5118288,2808.3,2807.6,6.40101]
[1645243409885,1.5118288,2808.2,2807.9,4.39043]
[1645243410084,0.67201283,2809.1,2808.0,0.82]
[1645243410284,5.09387106,2809.1,2808.0,0.90611616]
[1645243410532,2.67336802,2809.0,2808.0,0.90611616]
[1645243410731,1.51162694,2808.9,2808.2,0.8902963]
[1645243410931,1.51162694,2808.9,2808.4,0.89032]
[1645243411129,0.00203253,2808.6,2808.2,1.71028]
[1645243411531,0.00203253,2808.6,2808.2,5.21028]
[1645243412033,1.51162694,2808.9,2808.4,1.12864533]
[1645243412235,1.51162694,2808.8,2808.5,0.52]
[1645243412435,7.95872798,2809.3,2808.8,0.04271594]
[1645243412633,7.95872798,2809.3,2808.5,0.82]
[1645243412634,0.04848038,2808.7,2808.5,0.82]
[1645243413435,0.04848038,2808.7,2808.6,0.89023]
[1645243413635,0.04848038,2808.7,2808.5,0.82]
[1645243413838,0.04848038,2808.7,2808.5,0.3]
[1645243414033,0.04848038,2808.7,2808.2,5.1255509]
[1645243414034,0.04848038,2808.7,2808.3,0.3]
[1645243414289,0.04848038,2808.7,2808.2,4.02]
[1645243414290,1.51167127,2808.6,2808.2,3.5]
[1645243414685,0.04848038,2808.7,2808.2,4.39035]
[1645243414986,1.51367641,2808.6,2808.2,4.39035]
[1645243415184,1.51367641,2808.6,2808.2,3.5]
[1645243415793,1.51164237,2808.6,2808.2,3.5]
[1645243416085,0.00203408,2808.5,2808.2,3.5]
[1645243416287,0.00203408,2808.5,2808.2,4.02]
[1645243416689,0.00203408,2808.5,2808.2,4.91034]
[1645243416888,0.04848038,2808.7,2808.2,5.80071]
[1645243417090,0.00203411,2808.5,2808.2,4.91034]
[1645243417290,0.00203411,2808.5,2808.2,5.8006589]
[1645243418136,0.04848038,2808.7,2808.3,0.3]
[1645243418528,0.04848038,2808.7,2808.4,3.5]
[1645243418725,0.04848038,2808.7,2808.5,0.89034]
[1645243420829,0.05066844,2808.7,2808.5,0.89034]
[1645243421029,0.05066844,2808.7,2808.4,3.5]
[1645243421687,0.04848038,2808.7,2808.4,3.5]
[1645243422076,0.05066846,2808.7,2808.4,3.5]
[1645243422877,0.04848038,2808.7,2808.4,3.5]
[1645243423078,0.05066846,2808.7,2808.4,3.5]
[1645243423484,1.5117356,2808.6,2808.4,3.5]
[1645243423679,3.5,2808.5,2808.4,3.5]
[1645243423882,5.0117356,2808.5,2808.4,3.5]
[1645243424085,5.0117356,2808.5,2808.2,7.0]
[1645243424386,3.5,2808.5,2808.2,7.0]
[1645243424578,0.00218812,2808.6,2808.2,7.0]
[1645243424779,1.51398661,2808.6,2808.2,7.0]
[1645243424985,8.5,2808.5,2808.2,3.5]
[1645243425282,1.51179849,2808.4,2808.2,3.5]
[1645243425531,3.5,2808.3,2808.2,3.5]
[1645243427133,0.00218821,2808.4,2808.2,3.5]
[1645243427333,1.51403745,2808.4,2808.2,3.5]
[1645243427734,1.51184924,2808.4,2808.2,3.5]
[1645243427933,1.51403743,2808.4,2808.2,3.5]
[1645243428437,0.00218819,2808.4,2808.2,3.5]
[1645243428934,1.51169324,2808.6,2808.2,3.5]
[1645243429189,0.00218819,2808.4,2808.2,3.5]
[1645243430181,1.51169324,2808.6,2808.2,4.39039]
[1645243430483,0.00218819,2808.4,2808.2,4.39039]
[1645243431081,0.00218819,2808.4,2808.2,5.2807028]
[1645243431285,0.04848038,2808.7,2808.2,7.0612828]
[1645243431485,0.04848038,2808.7,2808.4,0.89032]
[1645243431686,0.04848038,2808.7,2808.4,2.90057]
[1645243431883,0.04848038,2808.7,2808.4,2.01025]
[1645243432088,0.04848038,2808.7,2808.4,0.52]
[1645243432683,0.05066846,2808.7,2808.4,0.52]
[1645243433646,0.04848038,2808.7,2808.4,0.52]
[1645243433845,0.05066846,2808.7,2808.4,0.52]
[1645243434449,0.05066846,2808.7,2808.2,4.39039]
[1645243434845,0.04848038,2808.7,2808.2,4.39039]
[1645243435246,0.00218812,2808.6,2808.2,4.39039]
[1645243436147,0.04848038,2808.7,2808.2,4.39039]
[1645243436347,0.00218814,2808.5,2808.2,4.39039]
[1645243437379,3.5,2808.5,2808.2,3.5]
[1645243437578,0.00218817,2808.5,2808.2,3.5]
[1645243438577,1.5117063,2808.6,2808.2,3.5]
[1645243438779,0.00218817,2808.5,2808.2,3.5]
[1645243440925,1.5117063,2808.6,2808.2,3.5]
[1645243441126,0.00218817,2808.5,2808.2,3.5]
[1645243441330,0.00111671,2808.5,2808.2,3.5]
[1645243442029,1.5117063,2808.6,2808.2,3.5]
[1645243443629,0.00096648,2808.5,2808.2,3.5]
[1645243444477,1.5117063,2808.6,2808.2,3.5]
[1645243444678,0.00096648,2808.5,2808.2,3.5]
[1645243445277,0.00096648,2808.5,2808.2,5.28081]
[1645243445678,1.5117063,2808.6,2808.2,5.28081]
[1645243445879,0.00218817,2808.5,2808.2,5.28081]
[1645243446480,0.00218817,2808.5,2808.2,4.39042]
[1645243446880,1.5117063,2808.6,2808.2,4.39042]
[1645243447082,1.5117063,2808.6,2808.2,3.5]
[1645243447282,0.00218817,2808.5,2808.2,3.5]
[1645243448139,1.5117063,2808.6,2808.2,3.5]
[1645243448343,0.00218817,2808.5,2808.2,3.5]
[1645243449340,1.5117063,2808.6,2808.2,4.39043]
[1645243449539,0.00218817,2808.5,2808.2,4.39043]
[1645243449740,0.00218817,2808.5,2808.2,3.5]
[1645243450540,1.5117063,2808.6,2808.2,3.5]
[1645243450762,0.00218817,2808.5,2808.2,3.5]
[1645243451783,1.5117063,2808.6,2808.2,3.5]
[1645243451984,0.00218817,2808.5,2808.2,3.5]
[1645243452484,0.00218817,2808.5,2808.2,4.53620312]
[1645243452684,0.00218817,2808.5,2808.2,3.64577312]
[1645243452889,1.5117063,2808.6,2808.2,3.64577312]
[1645243453084,0.00218817,2808.5,2808.2,4.53618312]
[1645243454083,1.5117063,2808.6,2808.2,4.53618312]
[1645243454284,0.00218817,2808.5,2808.2,5.42662312]
[1645243454883,0.00218817,2808.5,2808.2,5.72662312]
[1645243455087,0.00218817,2808.5,2808.4,0.89025]
[1645243455286,1.5117063,2808.6,2808.4,1.41025]
[1645243455732,0.00218817,2808.5,2808.4,1.41025]
[1645243456432,0.00218817,2808.5,2808.4,3.190612]
[1645243456635,1.5117063,2808.6,2808.4,4.970982]
[1645243456832,1.51389442,2808.6,2808.5,0.3]
[1645243457033,1.51389442,2808.6,2808.5,0.82]
[1645243457635,1.5117063,2808.6,2808.5,0.82]
[1645243457836,1.5117063,2808.6,2808.5,1.12]
[1645243457837,1.51142602,2808.6,2808.5,1.12]
[1645243458040,0.04848038,2808.7,2808.5,2.01014]
[1645243458041,0.05066846,2808.7,2808.5,2.01014]
[1645243458236,0.05066846,2808.7,2808.6,1.78027]
[1645243458439,1.56204538,2808.7,2808.6,3.1987522]
[1645243458737,0.05066846,2808.7,2808.6,2.30027]
[1645243458936,0.04848038,2808.7,2808.6,2.30027]
[1645243461989,0.00218804,2808.8,2808.7,17.85]
[1645243462191,0.00218804,2808.8,2808.7,18.37]
[1645243462388,0.00218804,2808.8,2808.7,19.48790084]
[1645243462588,0.00545097,2809.5,2809.2,1.77987]
[1645243462788,10.44548314,2810.2,2809.3,1.40992]
[1645243462789,0.00545097,2809.7,2809.3,1.40992]
[1645243463043,4.40737457,2810.0,2809.3,2.25441914]
[1645243463238,1.51096049,2809.9,2809.3,2.25441914]
[1645243463435,3.50545097,2809.8,2809.3,2.25441914]
[1645243463632,1.51096049,2809.7,2809.3,2.25441914]
[1645243463838,0.00545097,2809.6,2809.3,2.25441914]
[1645243464235,0.00545097,2809.7,2809.3,3.14432914]
[1645243464435,0.00545097,2809.9,2809.3,4.03424244]
[1645243464638,1.51093944,2809.8,2809.4,1.48991]
[1645243464836,0.00545097,2809.7,2809.5,0.52]
[1645243465033,5.4927,2810.1,2809.5,0.52]
[1645243465034,0.00545097,2810.0,2809.5,0.52]
[1645243465435,0.00545097,2810.0,2809.5,1.40985]
[1645243466234,0.00545097,2810.0,2809.5,2.29973]
[1645243466534,0.00218514,2809.9,2809.6,0.3]
[1645243466788,0.00218514,2809.9,2809.7,0.52]
[1645243467184,0.00218514,2809.9,2809.7,0.82]
[1645243467386,0.00545097,2810.0,2809.7,0.82]
[1645243467587,0.00218512,2809.9,2809.7,0.82]
[1645243467789,0.00218512,2809.9,2809.8,4.38986]
[1645243468392,0.00218512,2809.9,2809.8,4.90986]
[1645243468587,0.00545097,2810.0,2809.8,4.90986]
[1645243468791,0.00545097,2810.0,2809.8,1.40986]
[1645243468990,0.00763607,2810.0,2809.8,1.40986]
[1645243469792,0.00545097,2810.0,2809.8,1.40986]
[1645243469990,0.00763605,2810.0,2809.8,1.40986]
[1645243470939,0.00545097,2810.0,2809.8,1.40986]
[1645243471335,0.00763605,2810.0,2809.8,1.40986]
[1645243472137,0.00545097,2810.0,2809.8,1.40986]
[1645243472535,0.00763605,2810.0,2809.8,1.40986]
[1645243473337,0.00545097,2810.0,2809.8,1.40986]
[1645243473546,3.50545097,2810.0,2809.8,1.40986]
[1645243473740,3.50763605,2810.0,2809.6,2.81547312]
[1645243473940,3.50763605,2810.0,2809.6,6.31547312]
[1645243473941,0.00763605,2810.0,2809.6,6.31547312]
[1645243474583,0.00545097,2810.0,2809.6,6.31547312]
[1645243474784,0.00545097,2810.0,2809.7,1.77969]
[1645243474983,0.00218512,2809.9,2809.7,1.77969]
[1645243475782,0.00545097,2810.0,2809.7,1.77969]
[1645243476088,0.00218512,2809.9,2809.7,2.66954]
[1645243476689,0.00218512,2809.9,2809.7,3.55933]
[1645243476886,0.00218512,2809.9,2809.8,0.3]
[1645243477083,0.00545097,2810.3,2809.8,1.18981]
[1645243477284,0.00545097,2810.3,2810.0,1.18982]
[1645243478336,0.00545097,2810.3,2810.1,0.88983]
[1645243478532,0.00218497,2810.3,2810.1,0.88983]
[1645243478836,0.00763594,2810.3,2810.1,0.88983]
[1645243479032,0.00218497,2810.3,2810.1,0.88983]
[1645243479234,0.00763594,2810.3,2810.1,0.88983]
[1645243479434,0.00545097,2810.6,2810.1,0.88983]
[1645243479632,0.00218495,2810.3,2810.1,0.88983]
[1645243480634,0.93162137,2810.6,2810.1,0.88983]
[1645243480834,0.00218495,2810.3,2810.1,0.88983]
[1645243481690,0.93162137,2810.6,2810.1,0.88983]
[1645243482089,0.00218495,2810.3,2810.1,0.88983]
[1645243483090,0.93162137,2810.6,2810.1,0.88983]
[1645243483291,0.00218495,2810.3,2810.1,0.88983]
[1645243483893,0.00218495,2810.3,2810.1,1.18983]
[1645243484295,0.00545097,2810.4,2810.1,1.18983]
[1645243484493,0.00218495,2810.3,2810.1,1.18983]
[1645243484896,0.00103242,2810.3,2810.1,1.18983]
[1645243485297,0.00545097,2810.4,2810.1,1.18983]
[1645243486339,0.00545097,2810.4,2810.2,0.88978]
[1645243486939,0.00545097,2810.6,2810.2,0.88978]
[1645243488142,1.11708472,2810.6,2810.2,0.88978]
[1645243488340,1.11708472,2810.6,2810.1,1.18983]
[1645243488542,1.11708472,2810.6,2810.1,1.48983]
[1645243489289,0.00218488,2810.5,2810.1,1.48983]
[1645243490285,1.11708472,2810.6,2810.1,1.48983]
[1645243490484,0.0021849,2810.4,2810.1,1.48983]
[1645243491486,0.00545097,2810.4,2810.1,0.6]
[1645243491687,0.0076359,2810.4,2810.1,0.6]
[1645243492088,0.0076359,2810.4,2810.0,0.3]
[1645243492686,0.00545097,2810.4,2810.0,0.3]
[1645243492934,0.00218495,2810.3,2810.0,0.3]
[1645243493732,0.00545097,2810.4,2810.0,0.3]
[1645243494132,0.00218497,2810.3,2810.0,0.3]
[1645243494933,0.00545097,2810.4,2810.0,0.3]
[1645243495334,0.00218497,2810.3,2810.0,0.3]
[1645243495534,1.51300525,2810.3,2809.7,1.77966]
[1645243495736,1.51300525,2810.3,2809.6,1.92555312]
[1645243495737,3.50545097,2810.2,2809.6,1.92555312]
[1645243495933,3.50545097,2810.2,2809.7,0.88992]
[1645243496152,0.00545097,2810.2,2809.7,0.88992]
[1645243496334,3.50545097,2810.5,2809.7,0.88992]
[1645243496534,0.00218496,2810.2,2809.7,0.88992]
[1645243496989,1.51304416,2810.2,2809.7,0.88992]
[1645243497191,0.00545097,2810.1,2809.8,0.88994]
[1645243497691,0.00218498,2810.2,2809.8,0.88994]
[1645243498185,0.00763595,2810.2,2809.8,0.88994]
[1645243498589,0.00545097,2810.4,2809.9,1.18985]
[1645243498787,0.00218499,2810.2,2810.0,0.52]
[1645243498986,0.00218499,2810.2,2810.1,0.3]
[1645243499685,0.00218499,2810.2,2810.1,1.18971]
[1645243499889,0.00545097,2810.4,2810.1,2.37951]
[1645243500086,0.00218497,2810.3,2810.1,2.37951]
[1645243500937,0.00545097,2810.4,2810.1,1.4898]
[1645243501336,0.00218495,2810.3,2810.1,1.4898]
[1645243502137,1.51065259,2810.3,2810.1,1.4898]
[1645243502333,1.51065259,2810.2,2810.1,1.4898]
[1645243502538,1.51284057,2810.3,2810.1,2.0098]
[1645243502734,1.51065562,2810.2,2810.1,2.0098]
[1645243502934,0.00545097,2810.2,2810.1,2.0098]
[1645243503136,0.00218495,2810.3,2810.1,2.0098]
[1645243503335,1.51065976,2810.4,2810.1,2.0098]
[1645243503538,1.51065976,2810.4,2810.2,0.88978]
[1645243503838,0.00218497,2810.3,2810.2,0.88978]
[1645243504693,1.51065976,2810.4,2810.2,0.88978]
[1645243504893,1.51284469,2810.4,2810.2,0.88978]
[1645243505891,1.51065976,2810.4,2810.2,0.88978]
[1645243506092,1.51284466,2810.4,2810.2,0.88978]
[1645243506292,1.51284466,2810.4,2810.1,2.53197774]
[1645243507095,1.51065976,2810.4,2810.1,2.53197774]
[1645243507296,1.51284469,2810.4,2810.1,2.53197774]
[1645243507942,1.51284469,2810.4,2810.1,2.01197774]
[1645243508140,1.51065976,2810.4,2810.1,2.01197774]
[1645243508534,1.51284469,2810.4,2810.1,1.4898]
[1645243509335,1.51065976,2810.4,2810.1,1.4898]
[1645243509734,1.51284469,2810.4,2810.1,1.4898]
[1645243510539,1.51065976,2810.4,2810.1,1.4898]
[1645243510734,1.51284469,2810.4,2810.1,1.4898]
[1645243510934,1.51284469,2810.4,2810.1,1.48868103]
[1645243511534,1.51284469,2810.4,2810.1,0.29888103]
[1645243511787,1.51065976,2810.4,2809.9,1.77941]
[1645243511983,0.00545097,2810.3,2809.9,1.77941]
[1645243512186,1.51065976,2810.2,2810.0,0.3]
[1645243512582,1.51065976,2810.1,2810.0,0.3]
[1645243512782,1.51065976,2810.1,2810.0,1.18983]
[1645243512987,0.00218493,2810.4,2810.0,1.18983]
[1645243512988,1.51065976,2810.4,2810.0,1.18983]
[1645243513189,0.00218501,2810.2,2810.0,1.18983]
[1645243513385,1.51275057,2810.2,2810.1,2.66912]
[1645243513685,0.00763598,2810.2,2810.1,2.96912]
[1645243513884,0.00218501,2810.2,2810.1,3.05523616]
[1645243514086,0.00218501,2810.2,2810.1,6.46912]
[1645243514286,0.00545097,2810.3,2810.2,1.18967]
[1645243514584,1.51272635,2810.3,2810.2,2.5993401]
[1645243514785,0.00218497,2810.3,2810.2,2.5993401]
[1645243515186,0.00218497,2810.3,2810.2,2.8993401]
[1645243515432,1.51054138,2810.4,2810.2,2.8993401]
[1645243515633,1.51272631,2810.4,2810.3,0.6]
[1645243516533,1.51054138,2810.4,2810.3,0.6]
[1645243517534,1.51054138,2810.4,2810.3,0.3]
[1645243517836,1.51054138,2810.4,2810.2,0.3]
[1645243518037,0.85769006,2810.5,2810.2,0.3]
[1645243518244,1.51061497,2810.4,2810.1,1.4897]
[1645243518635,0.85769006,2810.5,2810.1,1.1897]
[1645243518835,0.85769006,2810.5,2810.1,1.4897]
[1645243519037,0.85550518,2810.5,2810.1,1.1897]
[1645243519288,0.0021849,2810.4,2810.2,0.88978]
[1645243519683,0.0021849,2810.4,2810.2,1.18978]
[1645243520291,0.00545097,2810.5,2810.2,1.18978]
[1645243520292,0.00545097,2810.5,2810.3,0.88969]
[1645243520484,0.0021849,2810.4,2810.3,1.18969]
[1645243520888,0.0021849,2810.4,2810.3,0.88969]
[1645243521286,0.0021849,2810.4,2810.3,1.18969]
[1645243521487,0.00545097,2810.5,2810.3,1.18969]
[1645243521686,0.00763585,2810.5,2810.3,1.18969]
[1645243522485,0.00763585,2810.5,2810.4,1.77924]
[1645243522686,0.00545097,2810.5,2810.4,1.77924]
[1645243522941,0.00218486,2810.5,2810.4,2.07924]
[1645243523637,0.00218486,2810.5,2810.4,1.77924]
[1645243523839,4.36085097,2810.7,2810.4,2.07924]
[1645243524041,0.00218484,2810.6,2810.5,0.88967]
[1645243524441,0.00218484,2810.6,2810.5,1.18967]
[1645243524639,0.00218484,2810.6,2810.5,2.07927]
[1645243525040,4.36085097,2810.7,2810.5,2.07927]
[1645243525242,4.36303577,2810.7,2810.5,2.07927]
[1645243526143,4.36085097,2810.7,2810.5,3.4888473]
[1645243526543,4.36303574,2810.7,2810.5,3.4888473]
[1645243527389,4.36085097,2810.7,2810.5,3.4888473]
[1645243527590,4.36303574,2810.7,2810.5,3.4888473]
[1645243527792,4.35758477,2810.7,2810.5,3.4888473]
[1645243528390,0.00218477,2810.7,2810.6,0.3]
[1645243528597,0.00545097,2811.0,2810.7,0.88956]
[1645243528791,0.00545097,2811.0,2810.8,0.52]
[1645243528995,0.01418875,2811.2,2810.9,3.5]
[1645243529198,0.00873778,2811.2,2811.1,6.497]
[1645243529397,0.00873778,2811.2,2811.1,10.517]
[1645243529595,0.00873778,2811.2,2811.1,12.64035439]
[1645243529791,0.67201283,2812.1,2811.1,13.96205055]
[1645243529792,0.99244555,2812.0,2811.1,13.96205055]
[1645243529996,0.00545097,2811.9,2811.5,1.18229067]
[1645243530195,0.00873683,2811.7,2811.6,0.52]
[1645243531046,8.7418,2812.2,2811.6,3.18743]
[1645243531047,0.00545097,2812.1,2811.6,3.18743]
[1645243531250,8.70780274,2812.2,2811.6,5.26571]
[1645243531445,8.70780274,2812.2,2811.7,0.889147]
[1645243531643,8.70780274,2812.2,2811.8,0.82]
[1645243531844,8.70780274,2812.2,2811.7,0.39865757]
[1645243532044,5.70240274,2812.2,2811.8,0.52]
[1645243532247,5.69396158,2812.2,2811.8,0.52]
[1645243532445,5.6927518,2812.2,2811.8,0.52]
[1645243533046,0.94387136,2812.1,2811.8,0.82]
[1645243533246,0.94387136,2812.1,2811.8,2.8983]
[1645243533545,0.94387136,2812.1,2811.9,1.77828]
[1645243533754,0.00096239,2812.1,2811.9,3.18742]
[1645243533949,0.00096239,2812.1,2811.9,4.0765695]
[1645243534382,0.00096239,2812.1,2812.0,0.3]
[1645243534582,4.5176,2812.2,2812.0,0.82]
[1645243534786,4.5176,2812.2,2812.1,0.88904]
[1645243534984,4.5176,2812.2,2812.1,1.40904]
[1645243537786,0.0021841,2812.3,2812.1,1.40904]
[1645243538051,0.0021841,2812.3,2812.2,3.5]
[1645243538244,4.2789,2812.8,2812.2,0.82]
[1645243538443,4.2789,2812.8,2812.3,1.77761]
[1645243538444,5.41391037,2812.8,2812.3,1.77761]
[1645243538640,1.47108437,2812.7,2812.4,0.52]
[1645243538841,1.47108437,2812.7,2812.4,11.37]
[1645243539056,0.008735,2812.8,2812.5,8.27464]
[1645243539343,451.01557577,2813.0,2812.7,1.77752]
[1645243539542,451.01557577,2813.0,2812.8,0.52]
[1645243539742,451.01557577,2813.0,2812.8,0.82]
[1645243539943,451.01557577,2813.0,2812.8,1.82]
[1645243540142,451.01557577,2813.0,2812.8,2.70875]
[1645243540345,451.01557577,2813.0,2812.9,2.07751]
[1645243540542,451.01557577,2813.0,2812.9,2.59751]
[1645243540945,451.01775954,2813.0,2812.9,3.59751]
[1645243541583,451.01775954,2813.0,2812.9,13.44751]